[Event "Late-Titled-Tuesday-Blitz-February-20-2024"]
[Site "Chess.com"]
[Date "2024.02.20"]
[Round "7"]
[White "Fandorine"]
[Black "Phamtrangiaphuc2009"]
[Result "1/2-1/2"]
[WhiteElo "2910"]
[BlackElo "2414"]
[TimeControl "180+1"]
[EndTime "15:19:54 PST"]
[Termination "Game drawn by agreement"]

1. d4 {[%clk 0:03:00.9]} 1... Nf6 {[%clk 0:02:59.6]} 2. c4 {[%clk 0:03:00.7]}
2... e6 {[%clk 0:02:59.6]} 3. Nc3 {[%clk 0:02:59.6]} 3... Bb4 {[%clk 0:02:59.2]}
4. Nf3 {[%clk 0:02:57.3]} 4... c5 {[%clk 0:02:55.7]} 5. dxc5 {[%clk 0:02:49.4]}
5... Na6 {[%clk 0:02:50.5]} 6. g3 {[%clk 0:02:49.1]} 6... Nxc5 {[%clk 0:02:45]}
7. Bg2 {[%clk 0:02:46.7]} 7... Nce4 {[%clk 0:02:45.1]} 8. O-O {[%clk 0:02:41]}
8... Bxc3 {[%clk 0:02:31.2]} 9. bxc3 {[%clk 0:02:40.9]} 9... O-O {[%clk
0:02:30.9]} 10. Ba3 {[%clk 0:02:34.4]} 10... d6 {[%clk 0:02:30.3]} 11. Qc2
{[%clk 0:02:29]} 11... Qc7 {[%clk 0:02:26.8]} 12. Nd2 {[%clk 0:02:27.1]} 12...
Nc5 {[%clk 0:02:22.1]} 13. Nb3 {[%clk 0:02:16.6]} 13... Rb8 {[%clk 0:02:15.5]}
14. Rfd1 {[%clk 0:02:06.9]} 14... Bd7 {[%clk 0:02:09]} 15. Rxd6 {[%clk 0:02:02]}
15... Qxd6 {[%clk 0:02:01.5]} 16. Bxc5 {[%clk 0:02:01.8]} 16... Qc7 {[%clk
0:01:56.4]} 17. Bxf8 {[%clk 0:02:01.6]} 17... Rxf8 {[%clk 0:01:56.1]} 18. c5
{[%clk 0:01:57.5]} 18... Ba4 {[%clk 0:01:54.9]} 19. Qd3 {[%clk 0:01:55.2]} 19...
Rd8 {[%clk 0:01:02.9]} 20. Qc4 {[%clk 0:01:55]} 20... Bc6 {[%clk 0:01:03]} 21.
Bxc6 {[%clk 0:01:48.3]} 21... Qxc6 {[%clk 0:01:02.1]} 22. Rb1 {[%clk 0:01:46]}
22... b6 {[%clk 0:01:00.7]} 23. f3 {[%clk 0:01:28.5]} 23... Rc8 {[%clk
0:00:48.1]} 24. Qa6 {[%clk 0:01:23.8]} 24... Nd5 {[%clk 0:00:45.6]} 25. Rc1
{[%clk 0:01:15.2]} 25... bxc5 {[%clk 0:00:34.1]} 26. Qxc6 {[%clk 0:01:14.9]}
26... Rxc6 {[%clk 0:00:33.9]} 27. c4 {[%clk 0:01:14.9]} 27... Nb6 {[%clk
0:00:34]} 28. Rd1 {[%clk 0:01:04.8]} 28... g6 {[%clk 0:00:30]} 29. Rd8+ {[%clk
0:00:59.5]} 29... Kg7 {[%clk 0:00:30]} 30. Na5 {[%clk 0:01:00.3]} 30... Rc7
{[%clk 0:00:29.8]} 31. Kf2 {[%clk 0:01:01]} 31... Kf6 {[%clk 0:00:28.4]} 32. f4
{[%clk 0:00:57.1]} 32... Ke7 {[%clk 0:00:26.5]} 33. Rh8 {[%clk 0:00:54.1]} 33...
h5 {[%clk 0:00:26.3]} 34. e4 {[%clk 0:00:54.1]} 34... Rd7 {[%clk 0:00:24.9]} 35.
Ke2 {[%clk 0:00:49.7]} 35... Kf6 {[%clk 0:00:22]} 36. Rh7 {[%clk 0:00:41.8]}
36... e5 {[%clk 0:00:12.1]} 37. h4 {[%clk 0:00:35.4]} 37... exf4 {[%clk
0:00:09.9]} 38. gxf4 {[%clk 0:00:35.5]} 38... Rd4 {[%clk 0:00:10]} 39. e5+
{[%clk 0:00:22.6]} 39... Ke6 {[%clk 0:00:08.8]} 40. Nb7 {[%clk 0:00:21.6]} 40...
Rxc4 {[%clk 0:00:05.8]} 41. Nd8+ {[%clk 0:00:21.4]} 41... Kd7 {[%clk 0:00:05.8]}
42. Nxf7 {[%clk 0:00:19.3]} 42... Rxf4 {[%clk 0:00:05.9]} 43. Ng5+ {[%clk
0:00:15.6]} 43... Kc6 {[%clk 0:00:05.8]} 44. e6 {[%clk 0:00:10.7]} 44... Nd5
{[%clk 0:00:04]} 45. Rxa7 {[%clk 0:00:10.5]} 45... Rxh4 {[%clk 0:00:03.8]} 46.
e7 {[%clk 0:00:11]} 46... Rh2+ {[%clk 0:00:03.9]} 47. Kd3 {[%clk 0:00:06.4]}
47... c4+ {[%clk 0:00:03.7]} 48. Kxc4 {[%clk 0:00:05.2]} 48... Re2 {[%clk
0:00:03.5]} 49. Ra6+ {[%clk 0:00:02.3]} 49... Nb6+ {[%clk 0:00:03.6]} 50. Kd4
{[%clk 0:00:01.7]} 50... Rxe7 {[%clk 0:00:03.6]} 51. Nf3 {[%clk 0:00:01.9]}
51... Kb5 {[%clk 0:00:02.9]} 52. Ra3 {[%clk 0:00:01.5]} 52... Rd7+ {[%clk
0:00:03.3]} 53. Ke4 {[%clk 0:00:02.1]} 53... Nc4 {[%clk 0:00:03.4]} 54. Rb3+
{[%clk 0:00:02.4]} 54... Kc5 {[%clk 0:00:04]} 55. Rb8 {[%clk 0:00:02.3]} 55...
Re7+ {[%clk 0:00:04]} 56. Kf4 {[%clk 0:00:02.9]} 56... Rf7+ {[%clk 0:00:04.4]}
57. Kg3 {[%clk 0:00:03.4]} 57... Ne3 {[%clk 0:00:04.4]} 58. Rc8+ {[%clk
0:00:03.4]} 58... Kd6 {[%clk 0:00:04.2]} 59. Rd8+ {[%clk 0:00:02.3]} 59... Kc7
{[%clk 0:00:04.2]} 60. Rd3 {[%clk 0:00:02.5]} 60... Nf5+ {[%clk 0:00:04.1]} 61.
Kh3 {[%clk 0:00:02.5]} 61... Rg7 {[%clk 0:00:03.4]} 62. Rc3+ {[%clk 0:00:02.8]}
62... Kd6 {[%clk 0:00:03.4]} 63. Rd3+ {[%clk 0:00:03.5]} 63... Ke6 {[%clk
0:00:03.5]} 64. Ra3 {[%clk 0:00:03.1]} 64... g5 {[%clk 0:00:03.4]} 65. Ra6+
{[%clk 0:00:02.7]} 65... Kd5 {[%clk 0:00:03.8]} 66. Ra5+ {[%clk 0:00:03.3]}
66... Ke4 {[%clk 0:00:04.1]} 67. Nd2+ {[%clk 0:00:03.4]} 67... Kf4 {[%clk
0:00:04.4]} 68. Ra4+ {[%clk 0:00:04]} 68... Ke3 {[%clk 0:00:04.8]} 69. Nc4+
{[%clk 0:00:04.5]} 69... Kf2 {[%clk 0:00:03.8]} 70. Ne5 {[%clk 0:00:02.7]} 70...
Ne3 {[%clk 0:00:04.1]} 71. Ra8 {[%clk 0:00:02.3]} 71... g4+ {[%clk 0:00:04.4]}
72. Kh4 {[%clk 0:00:02.7]} 72... g3 {[%clk 0:00:03]} 73. Rf8+ {[%clk 0:00:02.4]}
73... Ke2 {[%clk 0:00:03.3]} 74. Nf3 {[%clk 0:00:01.9]} 74... g2 {[%clk
0:00:02]} 75. Ng1+ {[%clk 0:00:02.5]} 75... Ke1 {[%clk 0:00:02.3]} 76. Kxh5
{[%clk 0:00:02.7]} 76... Rd7 {[%clk 0:00:01.6]} 77. Kh4 {[%clk 0:00:02.6]} 77...
Rd2 {[%clk 0:00:01.3]} 78. Kg3 {[%clk 0:00:02.7]} 78... Nf1+ {[%clk 0:00:01.8]}
79. Kh3 {[%clk 0:00:02.5]} 79... Rf2 {[%clk 0:00:02.2]} 80. Re8+ {[%clk
0:00:02.6]} 80... Kd2 {[%clk 0:00:02.5]} 81. Rd8+ {[%clk 0:00:02.9]} 81... Ke3
{[%clk 0:00:02.7]} 82. Re8+ {[%clk 0:00:03.5]} 82... Kd3 {[%clk 0:00:03]} 83.
Rd8+ {[%clk 0:00:03.8]} 83... Kc3 {[%clk 0:00:03.4]} 84. Rc8+ {[%clk 0:00:04]}
84... Kb2 {[%clk 0:00:03.5]} 85. a4 {[%clk 0:00:04.5]} 85... Ne3 {[%clk
0:00:03.7]} 86. Rb8+ {[%clk 0:00:04.2]} 86... Ka3 {[%clk 0:00:03.5]} 87. Re8
{[%clk 0:00:03.6]} 87... Nf5 {[%clk 0:00:03]} 88. a5 {[%clk 0:00:02.9]} 88...
Rf4 {[%clk 0:00:02.8]} 89. a6 {[%clk 0:00:02.6]} 89... Ra4 {[%clk 0:00:02.9]}
90. Ra8 {[%clk 0:00:02.1]} 90... Nd6 {[%clk 0:00:03.1]} 91. a7 {[%clk
0:00:02.3]} 91... Nb5 {[%clk 0:00:03.1]} 92. Kxg2 {[%clk 0:00:02.9]} 92... Nxa7
{[%clk 0:00:03.3]} 93. Rxa7 {[%clk 0:00:03.5]} 93... Rxa7 {[%clk 0:00:03.2]} 94.
Nf3 {[%clk 0:00:04.1]} 94... Rg7+ {[%clk 0:00:03.3]} 95. Kf2 {[%clk 0:00:04.5]}
95... Kb3 {[%clk 0:00:04.2]} 96. Ke3 {[%clk 0:00:05.3]} 96... Kc3 {[%clk
0:00:04.8]} 97. Ke4 {[%clk 0:00:04.5]} 97... Rf7 {[%clk 0:00:04.6]} 98. Ng5
{[%clk 0:00:04.2]} 98... Re7+ {[%clk 0:00:04.9]} 99. Kf4 {[%clk 0:00:03.4]}
99... Kd4 {[%clk 0:00:05]} 100. Nf3+ {[%clk 0:00:03.8]} 100... Kd5 {[%clk
0:00:05.2]} 101. Nd2 {[%clk 0:00:04.1]} 101... Rf7+ {[%clk 0:00:05.4]} 102. Ke3
{[%clk 0:00:04.5]} 102... Re7+ {[%clk 0:00:05.9]} 103. Kd3 {[%clk 0:00:04.8]}
103... Rh7 {[%clk 0:00:06.1]} 104. Ke3 {[%clk 0:00:04.7]} 104... Rh2 {[%clk
0:00:05.8]} 105. Nf3 {[%clk 0:00:05.4]} 105... Rh3 {[%clk 0:00:03.4]} 1/2-1/2

[Event "Late-Titled-Tuesday-Blitz-February-20-2024"]
[Site "Chess.com"]
[Date "2024.02.20"]
[Round "7"]
[White "djano"]
[Black "ahkashefi2800"]
[Result "0-1"]
[WhiteElo "2645"]
[BlackElo "2559"]
[TimeControl "180+1"]
[EndTime "15:19:56 PST"]
[Termination "ahkashefi2800 won by resignation"]

1. e4 {[%clk 0:03:00.9]} 1... c6 {[%clk 0:02:59.1]} 2. d4 {[%clk 0:02:59.8]}
2... d5 {[%clk 0:02:59.4]} 3. exd5 {[%clk 0:03:00.7]} 3... cxd5 {[%clk
0:02:59.7]} 4. Bd3 {[%clk 0:03:01.4]} 4... Nc6 {[%clk 0:02:56.7]} 5. c3 {[%clk
0:03:01.7]} 5... Nf6 {[%clk 0:02:55.7]} 6. Bf4 {[%clk 0:03:01.9]} 6... g6 {[%clk
0:02:55.4]} 7. Nf3 {[%clk 0:03:01.7]} 7... Bf5 {[%clk 0:02:55.4]} 8. Ne5 {[%clk
0:03:02.2]} 8... Bxd3 {[%clk 0:02:53.3]} 9. Nxd3 {[%clk 0:03:03.1]} 9... Bg7
{[%clk 0:02:53.3]} 10. O-O {[%clk 0:03:03.4]} 10... O-O {[%clk 0:02:53.4]} 11.
Re1 {[%clk 0:03:02]} 11... e6 {[%clk 0:02:53.5]} 12. h3 {[%clk 0:03:02]} 12...
Rc8 {[%clk 0:02:51]} 13. Nd2 {[%clk 0:03:01.3]} 13... Qb6 {[%clk 0:02:49.9]} 14.
Qb3 {[%clk 0:02:58.8]} 14... Nd7 {[%clk 0:02:49.4]} 15. Bh2 {[%clk 0:02:51.1]}
15... Qa6 {[%clk 0:02:48.3]} 16. Re3 {[%clk 0:02:39.7]} 16... Bh6 {[%clk
0:02:45]} 17. Bf4 {[%clk 0:02:34.8]} 17... Bxf4 {[%clk 0:02:43.2]} 18. Nxf4
{[%clk 0:02:35.7]} 18... Na5 {[%clk 0:02:40.1]} 19. Qd1 {[%clk 0:02:29.4]} 19...
Nc4 {[%clk 0:02:39.5]} 20. Nxc4 {[%clk 0:02:29.7]} 20... Qxc4 {[%clk 0:02:39.4]}
21. h4 {[%clk 0:02:22.5]} 21... Qc7 {[%clk 0:02:36.5]} 22. g3 {[%clk 0:02:19.9]}
22... Nf6 {[%clk 0:02:30.8]} 23. Qf3 {[%clk 0:02:11.1]} 23... Ne4 {[%clk
0:02:30.6]} 24. Kg2 {[%clk 0:02:09.6]} 24... Qb6 {[%clk 0:02:21.5]} 25. Nd3
{[%clk 0:02:07.2]} 25... Nd2 {[%clk 0:02:11.3]} 26. Qf4 {[%clk 0:02:02.6]} 26...
Nc4 {[%clk 0:02:11.2]} 27. Re2 {[%clk 0:01:57.5]} 27... Qc7 {[%clk 0:02:05.6]}
28. Qf6 {[%clk 0:01:50.9]} 28... Qd8 {[%clk 0:02:04.3]} 29. Qf4 {[%clk
0:01:50.3]} 29... Qc7 {[%clk 0:02:04.5]} 30. Qh6 {[%clk 0:01:50.6]} 30... Nd6
{[%clk 0:02:04.7]} 31. g4 {[%clk 0:01:40.9]} 31... Rce8 {[%clk 0:01:50.2]} 32.
h5 {[%clk 0:01:36.8]} 32... Qe7 {[%clk 0:01:21.6]} 33. Ne5 {[%clk 0:01:18.8]}
33... f6 {[%clk 0:01:13.1]} 34. hxg6 {[%clk 0:00:54.4]} 34... fxe5 {[%clk
0:01:13.1]} 35. dxe5 {[%clk 0:00:54.9]} 35... Ne4 {[%clk 0:01:12.7]} 36. f3
{[%clk 0:00:42.4]} 36... Nc5 {[%clk 0:01:12.5]} 37. Rh1 {[%clk 0:00:39.2]} 37...
Nd3 {[%clk 0:01:12.6]} 38. Kg3 {[%clk 0:00:29.5]} 38... Qg7 {[%clk 0:01:09.2]}
39. Qxh7+ {[%clk 0:00:28.3]} 39... Qxh7 {[%clk 0:01:05]} 40. Rxh7 {[%clk
0:00:29.2]} 40... Nf4 {[%clk 0:01:00.2]} 41. Reh2 {[%clk 0:00:27.6]} 41... Nxg6
{[%clk 0:00:59.7]} 42. Rxb7 {[%clk 0:00:27.6]} 42... Nxe5 {[%clk 0:00:55.4]} 43.
f4 {[%clk 0:00:24]} 43... Nf7 {[%clk 0:00:54.7]} 44. Rxa7 {[%clk 0:00:22.4]}
44... Ra8 {[%clk 0:00:52.7]} 45. Rxa8 {[%clk 0:00:21.6]} 45... Rxa8 {[%clk
0:00:52.8]} 46. a3 {[%clk 0:00:21.1]} 46... Nd6 {[%clk 0:00:51.5]} 47. Kf3
{[%clk 0:00:20.3]} 47... Nc4 {[%clk 0:00:48.2]} 48. f5 {[%clk 0:00:17.1]} 48...
e5 {[%clk 0:00:43.7]} 49. g5 {[%clk 0:00:17.2]} 49... Rb8 {[%clk 0:00:38.8]} 50.
Kg4 {[%clk 0:00:10.8]} 50... Ne3+ {[%clk 0:00:38]} 51. Kh5 {[%clk 0:00:10.3]}
51... Nxf5 {[%clk 0:00:38.1]} 52. Kg6 {[%clk 0:00:10.8]} 52... Ng3 {[%clk
0:00:37.6]} 53. Kf6 {[%clk 0:00:10.3]} 53... Re8 {[%clk 0:00:30.5]} 54. g6
{[%clk 0:00:05.9]} 54... Ne4+ {[%clk 0:00:30.6]} 55. Kf5 {[%clk 0:00:05]} 55...
Nd6+ {[%clk 0:00:30.4]} 56. Kf6 {[%clk 0:00:05.1]} 56... e4 {[%clk 0:00:22.1]}
57. g7 {[%clk 0:00:05.2]} 57... Nf7 {[%clk 0:00:22.4]} 58. Rd2 {[%clk
0:00:03.5]} 58... e3 {[%clk 0:00:22.3]} 59. Re2 {[%clk 0:00:04]} 59... Ne5
{[%clk 0:00:21.8]} 60. Kf5 {[%clk 0:00:03.6]} 60... Nc4 {[%clk 0:00:14.1]} 61.
Kf4 {[%clk 0:00:03.7]} 61... Re4+ {[%clk 0:00:14.4]} 62. Kf3 {[%clk 0:00:03.8]}
62... Ne5+ {[%clk 0:00:14]} 63. Kg3 {[%clk 0:00:04.4]} 63... Kxg7 {[%clk
0:00:14.3]} 64. b3 {[%clk 0:00:04.4]} 64... Kf7 {[%clk 0:00:14.6]} 65. a4 {[%clk
0:00:05]} 65... Ke7 {[%clk 0:00:14.8]} 66. a5 {[%clk 0:00:05.7]} 66... Kd7
{[%clk 0:00:15.3]} 67. b4 {[%clk 0:00:05.3]} 67... Kc6 {[%clk 0:00:15.4]} 68.
Kg2 {[%clk 0:00:03.8]} 68... Kb5 {[%clk 0:00:15.3]} 69. Kf1 {[%clk 0:00:04.4]}
69... Ka6 {[%clk 0:00:15.5]} 70. Ra2 {[%clk 0:00:02.5]} 70... Nc4 {[%clk
0:00:15.6]} 71. Ke2 {[%clk 0:00:02.9]} 71... Rf4 {[%clk 0:00:16]} 72. Kd3 {[%clk
0:00:03.3]} 72... Rf1 {[%clk 0:00:13.3]} 73. Re2 {[%clk 0:00:02.4]} 73... Rd1+
{[%clk 0:00:13.2]} 74. Kc2 {[%clk 0:00:02.1]} 74... Rd2+ {[%clk 0:00:13.3]} 75.
Rxd2 {[%clk 0:00:02.4]} 75... exd2 {[%clk 0:00:13.8]} 76. Kd1 {[%clk 0:00:03.1]}
76... Kb5 {[%clk 0:00:14.1]} 77. Kc2 {[%clk 0:00:03.5]} 77... Kc6 {[%clk
0:00:10.8]} 78. Kd1 {[%clk 0:00:03.6]} 78... Kd6 {[%clk 0:00:09.6]} 79. Kc2
{[%clk 0:00:04.1]} 79... Kc6 {[%clk 0:00:06.2]} 80. Kd1 {[%clk 0:00:04.4]} 80...
Kb5 {[%clk 0:00:05.7]} 81. Kc2 {[%clk 0:00:05]} 81... Ka4 {[%clk 0:00:03.5]} 82.
a6 {[%clk 0:00:05.5]} 82... Kb5 {[%clk 0:00:03]} 83. a7 {[%clk 0:00:06.1]} 83...
Nb6 {[%clk 0:00:03.4]} 84. Kxd2 {[%clk 0:00:06.8]} 84... Ka6 {[%clk 0:00:03.8]}
85. Kd3 {[%clk 0:00:07.2]} 85... Kxa7 {[%clk 0:00:04]} 86. Kd4 {[%clk
0:00:07.8]} 86... Ka6 {[%clk 0:00:03.9]} 87. Kc5 {[%clk 0:00:08.5]} 87... Kb7
{[%clk 0:00:04.3]} 88. Kd6 {[%clk 0:00:08.9]} 88... Kb8 {[%clk 0:00:03.7]} 89.
Kc6 {[%clk 0:00:09.5]} 89... Ka7 {[%clk 0:00:04.1]} 90. Kd6 {[%clk 0:00:09.7]}
90... Kb7 {[%clk 0:00:04.3]} 91. Kc5 {[%clk 0:00:09.3]} 91... Kc7 {[%clk
0:00:04.5]} 92. b5 {[%clk 0:00:09.7]} 92... Kb7 {[%clk 0:00:02.3]} 93. Kd6
{[%clk 0:00:10.4]} 93... Kb8 {[%clk 0:00:02.4]} 94. Kc6 {[%clk 0:00:10.9]} 94...
Ka7 {[%clk 0:00:02.8]} 95. Kd6 {[%clk 0:00:11]} 95... Kb7 {[%clk 0:00:02.5]} 96.
Ke6 {[%clk 0:00:10.5]} 96... Kc7 {[%clk 0:00:03]} 97. Ke7 {[%clk 0:00:11.1]}
97... Na4 {[%clk 0:00:03.3]} 98. b6+ {[%clk 0:00:10.6]} 98... Kxb6 {[%clk
0:00:03.4]} 99. Kd6 {[%clk 0:00:11.5]} 99... Nxc3 {[%clk 0:00:03.8]} 100. Ke5
{[%clk 0:00:12.4]} 100... Kc5 {[%clk 0:00:04.4]} 0-1

[Event "Late-Titled-Tuesday-Blitz-February-20-2024"]
[Site "Chess.com"]
[Date "2024.02.20"]
[Round "7"]
[White "Eloist"]
[Black "IMRosen"]
[Result "1/2-1/2"]
[WhiteElo "2474"]
[BlackElo "2676"]
[TimeControl "180+1"]
[EndTime "15:20:15 PST"]
[Termination "Game drawn - insufficient material"]

1. e4 {[%clk 0:03:00.9]} 1... c5 {[%clk 0:03:00]} 2. Nf3 {[%clk 0:03:00.1]} 2...
Nc6 {[%clk 0:03:00.7]} 3. Bb5 {[%clk 0:02:58.9]} 3... e6 {[%clk 0:03:01.3]} 4.
Bxc6 {[%clk 0:02:58.8]} 4... bxc6 {[%clk 0:03:02.2]} 5. d3 {[%clk 0:02:57.1]}
5... Ne7 {[%clk 0:03:02.5]} 6. Qe2 {[%clk 0:02:57]} 6... Ng6 {[%clk 0:03:02.2]}
7. h4 {[%clk 0:02:56.3]} 7... f6 {[%clk 0:03:02.6]} 8. h5 {[%clk 0:02:55.6]}
8... Ne5 {[%clk 0:03:02.9]} 9. Nxe5 {[%clk 0:02:52.4]} 9... fxe5 {[%clk
0:03:03.8]} 10. Qg4 {[%clk 0:02:46.4]} 10... d6 {[%clk 0:02:53.6]} 11. c4 {[%clk
0:02:40.3]} 11... Qf6 {[%clk 0:02:48.8]} 12. Bg5 {[%clk 0:02:37.5]} 12... Qf7
{[%clk 0:02:47.5]} 13. Rh3 {[%clk 0:02:31.5]} 13... Be7 {[%clk 0:02:27.8]} 14.
Rf3 {[%clk 0:02:30.1]} 14... Bf6 {[%clk 0:02:27.2]} 15. h6 {[%clk 0:02:15.6]}
15... Qg6 {[%clk 0:02:22.2]} 16. hxg7 {[%clk 0:02:07.8]} 16... Bxg7 {[%clk
0:02:21.1]} 17. Qh4 {[%clk 0:01:41.5]} 17... Rb8 {[%clk 0:01:54.8]} 18. b3
{[%clk 0:01:27.2]} 18... Rb7 {[%clk 0:01:38.8]} 19. Nc3 {[%clk 0:01:21.8]} 19...
Rf7 {[%clk 0:01:17.1]} 20. Rxf7 {[%clk 0:01:14.4]} 20... Qxf7 {[%clk 0:01:10.4]}
21. Ke2 {[%clk 0:01:11.3]} 21... h6 {[%clk 0:01:10]} 22. Be3 {[%clk 0:01:07.7]}
22... Kd7 {[%clk 0:01:04.2]} 23. a3 {[%clk 0:01:01.5]} 23... Bf6 {[%clk
0:00:56.9]} 24. Qh3 {[%clk 0:00:55.6]} 24... Kc7 {[%clk 0:00:49]} 25. b4 {[%clk
0:00:55.5]} 25... cxb4 {[%clk 0:00:27.5]} 26. axb4 {[%clk 0:00:56.4]} 26... a6
{[%clk 0:00:28.2]} 27. b5 {[%clk 0:00:53.4]} 27... d5 {[%clk 0:00:25.3]} 28. Bc5
{[%clk 0:00:41.2]} 28... d4 {[%clk 0:00:19.2]} 29. Nb1 {[%clk 0:00:31.6]} 29...
cxb5 {[%clk 0:00:16]} 30. cxb5 {[%clk 0:00:31.5]} 30... Bg5 {[%clk 0:00:16]} 31.
bxa6 {[%clk 0:00:28]} 31... Kc6 {[%clk 0:00:09.1]} 32. Bb4 {[%clk 0:00:24.3]}
32... Kb5 {[%clk 0:00:09.6]} 33. Bd2 {[%clk 0:00:22.9]} 33... Bxa6 {[%clk
0:00:08.8]} 34. Bxg5 {[%clk 0:00:22.3]} 34... Rc8 {[%clk 0:00:05.5]} 35. Bd2
{[%clk 0:00:19.1]} 35... Kb6 {[%clk 0:00:03.5]} 36. Na3 {[%clk 0:00:18.5]} 36...
Kb7 {[%clk 0:00:02.3]} 37. Qh1 {[%clk 0:00:17.6]} 37... Rf8 {[%clk 0:00:01.1]}
38. Qb1+ {[%clk 0:00:17]} 38... Kc8 {[%clk 0:00:01.5]} 39. f3 {[%clk 0:00:17.3]}
39... Qc7 {[%clk 0:00:01.4]} 40. Qc2 {[%clk 0:00:17.1]} 40... Qxc2 {[%clk
0:00:01.2]} 41. Nxc2 {[%clk 0:00:18]} 41... Bb7 {[%clk 0:00:02]} 42. Nb4 {[%clk
0:00:18.2]} 42... Rg8 {[%clk 0:00:02.1]} 43. Rc1+ {[%clk 0:00:17.8]} 43... Kd7
{[%clk 0:00:02.2]} 44. g4 {[%clk 0:00:18.3]} 44... h5 {[%clk 0:00:02.2]} 45. Rg1
{[%clk 0:00:17.7]} 45... Bc6 {[%clk 0:00:01.6]} 46. g5 {[%clk 0:00:17.1]} 46...
Bb5 {[%clk 0:00:01.8]} 47. g6 {[%clk 0:00:16.5]} 47... Ke7 {[%clk 0:00:02]} 48.
f4 {[%clk 0:00:16.8]} 48... exf4 {[%clk 0:00:02]} 49. Bxf4 {[%clk 0:00:17.7]}
49... Kf6 {[%clk 0:00:02.1]} 50. Bd6 {[%clk 0:00:16.3]} 50... Rxg6 {[%clk
0:00:01.8]} 51. e5+ {[%clk 0:00:16.2]} 51... Kf5 {[%clk 0:00:01.8]} 52. Rxg6
{[%clk 0:00:15.9]} 52... Kxg6 {[%clk 0:00:02.7]} 53. Bc5 {[%clk 0:00:15.9]}
53... Kf5 {[%clk 0:00:01.7]} 54. Bxd4 {[%clk 0:00:16.2]} 54... h4 {[%clk
0:00:02.4]} 55. Kf3 {[%clk 0:00:14.4]} 55... h3 {[%clk 0:00:01.8]} 56. Kg3
{[%clk 0:00:14.6]} 56... h2 {[%clk 0:00:02.4]} 57. Kxh2 {[%clk 0:00:14.7]} 57...
Kf4 {[%clk 0:00:03.3]} 58. Kg2 {[%clk 0:00:14.1]} 58... Kg4 {[%clk 0:00:03.2]}
59. Kf2 {[%clk 0:00:14.2]} 59... Kf4 {[%clk 0:00:03.8]} 60. Ke2 {[%clk
0:00:12.7]} 60... Ba4 {[%clk 0:00:03.7]} 61. Kd2 {[%clk 0:00:12.5]} 61... Bb3
{[%clk 0:00:03.9]} 62. Na6 {[%clk 0:00:11.7]} 62... Bd5 {[%clk 0:00:03.5]} 63.
Nc5 {[%clk 0:00:12.1]} 63... Kf5 {[%clk 0:00:03.4]} 64. Ke3 {[%clk 0:00:12.3]}
64... Ba2 {[%clk 0:00:03.2]} 65. Bc3 {[%clk 0:00:12.8]} 65... Bd5 {[%clk
0:00:03.6]} 66. d4 {[%clk 0:00:13]} 66... Ba2 {[%clk 0:00:04.3]} 67. Nd3 {[%clk
0:00:13]} 67... Bd5 {[%clk 0:00:03.6]} 68. Nf4 {[%clk 0:00:13]} 68... Ba2 {[%clk
0:00:03.9]} 69. Ne2 {[%clk 0:00:12.8]} 69... Bc4 {[%clk 0:00:03.9]} 70. Bd2
{[%clk 0:00:12.6]} 70... Ba2 {[%clk 0:00:03.7]} 71. Ng3+ {[%clk 0:00:12.6]}
71... Kg4 {[%clk 0:00:03.7]} 72. Ne4 {[%clk 0:00:12.3]} 72... Kf5 {[%clk
0:00:04.3]} 73. Nc5 {[%clk 0:00:12]} 73... Bc4 {[%clk 0:00:04.5]} 74. Bc3 {[%clk
0:00:12.1]} 74... Bd5 {[%clk 0:00:04.8]} 75. Nd3 {[%clk 0:00:12]} 75... Bc4
{[%clk 0:00:04.5]} 76. Ne1 {[%clk 0:00:11.9]} 76... Bd5 {[%clk 0:00:04.9]} 77.
Nf3 {[%clk 0:00:10.8]} 77... Bc4 {[%clk 0:00:04.5]} 78. Nh4+ {[%clk 0:00:10.9]}
78... Kg4 {[%clk 0:00:04.6]} 79. Ng6 {[%clk 0:00:11.3]} 79... Kf5 {[%clk
0:00:05.1]} 80. Nf8 {[%clk 0:00:11.4]} 80... Ba2 {[%clk 0:00:05.8]} 81. Nd7
{[%clk 0:00:11.6]} 81... Bd5 {[%clk 0:00:05.6]} 82. Nb6 {[%clk 0:00:11.6]} 82...
Bb3 {[%clk 0:00:06.1]} 83. Kd3 {[%clk 0:00:11.5]} 83... Kf4 {[%clk 0:00:06.1]}
84. Nd7 {[%clk 0:00:10.5]} 84... Kf5 {[%clk 0:00:06.4]} 85. Ke3 {[%clk
0:00:10.6]} 85... Bc4 {[%clk 0:00:06.3]} 86. Nb6 {[%clk 0:00:10.7]} 86... Bb3
{[%clk 0:00:06.7]} 87. Nc8 {[%clk 0:00:11]} 87... Ba2 {[%clk 0:00:05.7]} 88.
Nd6+ {[%clk 0:00:11.9]} 88... Kg4 {[%clk 0:00:05.9]} 89. Ke4 {[%clk 0:00:11.4]}
89... Bd5+ {[%clk 0:00:06.1]} 90. Ke3 {[%clk 0:00:11.3]} 90... Ba2 {[%clk
0:00:07]} 91. Ba5 {[%clk 0:00:10.9]} 91... Bd5 {[%clk 0:00:06.5]} 92. Bd8 {[%clk
0:00:11.8]} 92... Ba2 {[%clk 0:00:06.4]} 93. Bf6 {[%clk 0:00:12.6]} 93... Bb3
{[%clk 0:00:05.9]} 94. Ne8 {[%clk 0:00:12.5]} 94... Kf5 {[%clk 0:00:05.6]} 95.
Nc7 {[%clk 0:00:12.5]} 95... Bc4 {[%clk 0:00:05.5]} 96. Kd2 {[%clk 0:00:12.1]}
96... Ke4 {[%clk 0:00:05.4]} 97. Kc3 {[%clk 0:00:13]} 97... Ba2 {[%clk
0:00:05.3]} 98. Be7 {[%clk 0:00:11.8]} 98... Kf5 {[%clk 0:00:04]} 99. Bc5 {[%clk
0:00:12.7]} 99... Ke4 {[%clk 0:00:04.5]} 100. Kb4 {[%clk 0:00:13.2]} 100... Kf5
{[%clk 0:00:03.1]} 101. Kb5 {[%clk 0:00:13.7]} 101... Bb3 {[%clk 0:00:03.2]}
102. Kc6 {[%clk 0:00:14.2]} 102... Kg6 {[%clk 0:00:03.1]} 103. Kd6 {[%clk
0:00:14.4]} 103... Kf7 {[%clk 0:00:03.8]} 104. Kd7 {[%clk 0:00:14.3]} 104... Ba2
{[%clk 0:00:04.1]} 105. Kd6 {[%clk 0:00:13.3]} 105... Bb3 {[%clk 0:00:04.2]}
106. d5 {[%clk 0:00:13.7]} 106... exd5 {[%clk 0:00:03.5]} 107. e6+ {[%clk
0:00:13.8]} 107... Kf6 {[%clk 0:00:03]} 108. e7 {[%clk 0:00:14]} 108... Ba4
{[%clk 0:00:03.7]} 109. Nxd5+ {[%clk 0:00:13.7]} 109... Kf7 {[%clk 0:00:03.7]}
110. Nb6 {[%clk 0:00:10.1]} 110... Be8 {[%clk 0:00:02.8]} 111. Kc7 {[%clk
0:00:10.1]} 111... Kf6 {[%clk 0:00:03]} 112. Kd8 {[%clk 0:00:10.3]} 112... Bf7
{[%clk 0:00:03]} 113. Nd5+ {[%clk 0:00:08.3]} 113... Ke5 {[%clk 0:00:02.2]} 114.
Nc7 {[%clk 0:00:08]} 114... Bg6 {[%clk 0:00:01.3]} 115. Kd7 {[%clk 0:00:06.9]}
115... Bf7 {[%clk 0:00:01.6]} 116. Bd6+ {[%clk 0:00:06.2]} 116... Kf6 {[%clk
0:00:01.1]} 117. Bh2 {[%clk 0:00:07]} 117... Bg6 {[%clk 0:00:01.3]} 118. Bd6
{[%clk 0:00:07.7]} 118... Bf5+ {[%clk 0:00:01.3]} 119. Kd8 {[%clk 0:00:08]}
119... Bg6 {[%clk 0:00:02.2]} 120. Nd5+ {[%clk 0:00:07.6]} 120... Ke6 {[%clk
0:00:01.9]} 121. Nc7+ {[%clk 0:00:07.5]} 121... Kxd6 {[%clk 0:00:02]} 122. e8=Q
{[%clk 0:00:07.9]} 122... Bxe8 {[%clk 0:00:02.2]} 1/2-1/2